[Event "Czech Championship 2024"]
[Site "Ostrava"]
[Date "2024.04.29"]
[Round "3.2"]
[White "Nemec, Jachym"]
[Black "Simacek, Pavel"]
[Result "1/2-1/2"]
[ECO "E05"]
[WhiteElo "2416"]
[BlackElo "2446"]
[Annotator "TA"]
[PlyCount "124"]
[EventDate "2024.04.25"]
[EventType "tourn"]
[EventCountry "CZE"]
[SourceTitle "playchess.com"]
[Source "ChessBase"]
[SourceQuality "1"]
[TimeControl "40/5400+30:1800+30"]

{[%evp 14,124,19,20,45,20,24,8,50,26,36,41,37,10,13,10,29,32,34,22,20,22,13,-18,0,0,0,0,18,-51,-47,-48,-42,-36,-45,-46,0,-49,-43,-70,0,-100,-36,-44,-46,-34,-35,-31,-37,-32,-15,-10,0,-30,-19,-58,-55,-50,-16,-20,-20,-131,-125,-127,0,0,0,-33,0,-33,0,-14,-13,-64,0,-70,-63,-123,-125,-141,-109,-149,-60,-70,-74,-77,-43,-81,-45,-90,0,-145,-70,-87,-93,-91,-80,-77,0,0,0,0,0,0,0,0,0,0,0,0,0,0,0]} 1. d4 {[%emt 0:00:03]} Nf6 {[%emt 0:00:10]} 2. c4 {[%emt 0:00:14]} e6 {[%emt 0:00:12]} 3. Nf3 {[%emt 0:00:46]} d5 {[%emt 0:00:31]} 4. g3 {[%emt 0:00:16]} Be7 {[%emt 0:00:38]} 5. Bg2 {[%emt 0:00:18]} O-O {[%emt 0:00:06]} 6. O-O {[%emt 0:00:35]} dxc4 {[%emt 0:00:45]} 7. Qc2 {[%emt 0:00:13]} a6 {[%emt 0:00:09]} 8. a4 {[%emt 0:00:12]} h6 {[%emt 0:01:34]} 9. Nbd2 {[%emt 0:10:06]} Nc6 {[%emt 0:01:07]} 10. Qxc4 {[%emt 0:02:53]} Qd5 {[%emt 0:02:40]} 11. e3 {[%emt 0:00:59]} Qxc4 {[%emt 0:10:57]} 12. Nxc4 {[%emt 0:00:13]} Rd8 {[%emt 0:01:03]} 13. a5 {[%emt 0:03:10]} Bd7 {[%emt 0:05:38]} 14. Bd2 {[%emt 0:01:50]} Ne4 {[%emt 0:01:37]} 15. Rfc1 {[%emt 0:05:04]} Nxd2 {[%emt 0:06:53]} 16. Nfxd2 {[%emt 0:00:42]} Rab8 {[%emt 0:02:24]} 17. Nb3 {[%emt 0:11:22]} Be8 {[%emt 0:07:55]} 18. f4 {[%emt 0:04:56]} Nb4 {[%emt 0:02:13]} 19. Ncd2 {[%emt 0:06:44]} Bc6 {[%emt 0:06:39]} 20. Bxc6 {[%emt 0:04:56]} Nxc6 {[%emt 0:00:16]} 21. Ra4 {[%emt 0:00:34]} (21. Nc5 $11) 21... Rd5 $15 {[%emt 0:00:47]} 22. Nc4 {[%emt 0:14:41]} Rb5 {[%emt 0:01:21]} 23. Rc3 {[%emt 0:01:15]} Bb4 {[%emt 0:06:18]} 24. Rc2 {[%emt 0:02:19]} f6 {[%emt 0:04:49]} (24... Bf8 $15 {is more appropriate.} 25. Rc3 Bb4) 25. Kg2 {[%emt 0:05:10]} (25. Na3 $11 {should be considered.} Bxa3 26. Rxa3) 25... Rd8 {[%emt 0:02:18]} 26. Kf3 {[%emt 0:03:41]} Rd7 {[%emt 0:07:48]} (26... Be7 $15 27. Rc3 Bb4) 27. g4 {[%emt 0:06:39]} (27. Na3 $1 $11 Bxa3 28. Rxa3) 27... g5 {[%emt 0:01:26]} (27... Be7 $17 28. Ncd2 g5 29. fxg5 hxg5) 28. Na3 {[%emt 0:01:55]} Bxa3 {[%emt 0:08:47]} 29. Rxa3 {[%emt 0:00:03]} gxf4 {[%emt 0:00:28]} 30. Kxf4 {[%emt 0:01:30]} e5+ {[%emt 0:01:27]} 31. dxe5 $1 {[%emt 0:01:21]} fxe5+ {[%emt 0:04:03]} 32. Kf3 {[%emt 0:00:39]} Rdd5 {[%emt 0:06:18]} (32... Rd3 $5 33. Rc3 $8 Rd1 $11) 33. Ke4 {[%emt 0:04:01]} Kf7 {[%emt 0:00:41][%cal Of7f6]} (33... Nxa5 34. Nxa5 Rxa5 35. Rxc7 $16) 34. Rc3 {[%emt 0:04:17]} Rd1 {[%emt 0:02:37]} (34... Nxa5 35. Rxc7+ Kg6 36. Rxa5 Rxa5 37. Nxa5 Rxa5 38. Rxb7 $16) 35. Ra4 {[%emt 0:00:33]} Rh1 {[%emt 0:01:14]} 36. Nc5 {[%emt 0:01:01][%cal Oc5b7]} Ne7 {[%emt 0:01:23]} (36... Rxb2 37. Nxb7 h5 38. Rxc6 $16 (38. gxh5 Rbxh2 39. Rac4 Rh4+ 40. Kf3 e4+ 41. Rxe4 R1h3+ 42. Kg2 Rh2+ 43. Kg3 R4h3+ 44. Kg4 Rh4+ 45. Kg3 R4h3+ 46. Kg4 Rh4+ 47. Kf3 R2h3+ 48. Kg2 Rh2+ 49. Kg3 $11)) (36... Rxa5 37. Rxa5 Nxa5 38. b4 $14 (38. Kxe5 Nc6+ 39. Ke4 Rxh2 $11)) 37. Nd3 {[%emt 0:00:48]} (37. Kxe5 $2 b6 38. axb6 cxb6 39. Rxa6 (39. Rf4+ $2 Ke8 $19) 39... Ng6+ (39... Rxc5+ 40. Rxc5 Ng6+ 41. Kd6 $17) (39... bxc5 $2 40. Rxh6 Ng6+ 41. Ke4 $19) 40. Kd5 Rxh2 $17 (40... bxc5 41. Rxc5 Ne7+ 42. Kc4 $17) (40... Rxc5+ 41. Rxc5 bxc5 42. Kxc5 $17)) (37. Rc2 $11 {remains equal.}) 37... Nd5 $1 $17 {[%emt 0:01:28]} 38. Rc2 {[%emt 0:01:47]} Rf1 {[%emt 0:01:40]} (38... Nf6+ $1 $17 39. Kf3 e4+ 40. Rxe4 (40. Kg2 $2 exd3 41. Rxc7+ Ke6 $19) 40... Nxe4 (40... Rxa5 $2 41. Rxc7+ Kg8 42. Ree7 $18) 41. Rxc7+ Kf6 42. Kxe4 Rxh2 (42... Rxa5 43. Rxb7 Rxh2 44. Rb6+ Ke7 45. b3 $15)) 39. Nxe5+ $11 {[%emt 0:00:55]} (39. Kxe5 $2 Nb4+ (39... Nxe3+ 40. Rc5 $11) 40. Ke4 Nxc2 $19) 39... Ke6 {[%emt 0:00:04]} 40. Nd3 {[%emt 0:00:55]} Nf6+ {[%emt 0:01:21]} 41. Kd4 {[%emt 0:01:37]} Kd6 {[%emt 0:05:51][%cal Of1d1]} (41... Rd1 {is more complex.} 42. e4 Nxg4 43. Rxc7 Rb3) 42. e4 {[%emt 0:12:04]} Nxg4 {[%emt 0:02:06]} 43. Rd2 {[%emt 0:07:24]} (43. h3 $11 Ne5 44. Nxe5 Rxe5 45. Ke3) 43... Rf3 {[%emt 0:07:22]} (43... c5+ $15 44. Kc3 Rf3) 44. Ra3 {[%emt 0:04:49]} ({White should play} 44. b4 $11) 44... h5 {[%emt 0:09:20]} 45. h4 {[%emt 0:02:49]} (45. Kc4 $15 Ke7 46. Ra1) 45... Rh3 {[%emt 0:01:18][%cal Oc7c6]} 46. Kc3 {[%emt 0:02:16]} Ne5 {[%emt 0:02:59]} (46... Rxh4 $6 47. Nf4+ Kc6 48. Ne6 Rh3+ 49. Kc2 Ne3+ 50. Kb1 Rh1+ 51. Ka2 $11) 47. Kc2 {[%emt 0:01:14]} Nxd3 {[%emt 0:00:33]} (47... Rxh4 $17 {...Nc4 is the strong threat.} 48. Nf4+ Ke7) 48. Rdxd3+ $15 {[%emt 0:00:51]} Rxd3 {[%emt 0:00:05]} 49. Rxd3+ $17 {[%emt 0:00:26][%mdl 4096] Endgame. KR-KR} Ke6 {[%emt 0:00:16]} 50. Rg3 {[%emt 0:00:25]} Kf6 {[%emt 0:01:46] Prevents Rg7.} 51. Rf3+ {[%emt 0:01:01] [#]} Ke6 {[%emt 0:00:28]} (51... Ke5 $142 $1) 52. Rg3 {[%emt 0:00:20] [#]} Rxa5 {[%emt 0:00:18]} ({Better is} 52... Ke5 $1 $17 53. Rg7 c6 (53... Kxe4 54. Rxc7 Kf3 55. Rg7 $11)) 53. Rg7 {[%emt 0:00:09]} Rc5+ {[%emt 0:00:19]} 54. Kd3 {[%emt 0:00:07]} a5 {[%emt 0:00:23]} 55. Kd4 {[%emt 0:00:21]} Rb5 {[%emt 0:01:11]} ({Black should try} 55... b6 $17 56. b3 Rb5 57. Rxc7 Rxb3) 56. Rxc7 $11 {[%emt 0:00:39] The position is equal.} Rxb2 {[%emt 0:00:20] aiming for ...Rb4+.} 57. Rc5 {[%emt 0:00:40]} a4 {[%emt 0:01:08]} 58. Rxh5 {[%emt 0:00:38]} Rb4+ {[%emt 0:01:23]} 59. Kc3 {[%emt 0:00:44]} Rxe4 {[%emt 0:00:26]} 60. Rb5 {[%emt 0:00:21]} a3 {[%emt 0:00:14]} 61. Kb3 {[%emt 0:00:46]} Ra4 {[%emt 0:00:34] Hoping for ...a2.} 62. Ka2 {[%emt 0:00:03]} (62. Kxa4 a2 63. Rb4 (63. Rb6+ $2 Kd5 $19) 63... a1=Q+ $19 (63... a1=B $2 {perishes.} 64. h5 $18)) 62... Rxh4 {[%emt 0:03:25] Weighted Error Value: White=0.22 (precise) /Black=0.20 (precise) .  Mistake:       	White=7     	Black=9      Inaccurate:     	White=9     	Black=5      OK:         	White=15    	Black=12     Best:        	White=5     	Black=4      Strong:       	White=1     	Black=1} 1/2-1/2

[Event "Czech Championship 2024"]
[Site "Ostrava"]
[Date "2024.04.29"]
[Round "3.3"]
[White "Stalmach, Richard"]
[Black "Navara, David"]
[Result "1-0"]
[ECO "A09"]
[WhiteElo "2446"]
[BlackElo "2678"]
[Annotator "TA"]
[PlyCount "89"]
[EventDate "2024.04.25"]
[EventType "tourn"]
[EventCountry "CZE"]
[SourceTitle "playchess.com"]
[Source "ChessBase"]
[SourceQuality "1"]
[TimeControl "40/5400+30:1800+30"]

{[%evp 9,89,15,18,9,34,24,49,37,32,35,41,49,59,38,39,38,41,32,45,45,39,38,62,53,107,112,112,114,110,108,284,285,306,312,430,422,434,432,465,448,652,741,748,704,704,551,629,519,589,595,657,655,692,711,671,718,747,727,756,740,724,703,755,750,768,768,768,768,733,735,728,717,721,694,806,792,6095,1218,29978,29964,6504,5927]} 1. Nf3 {[%emt 0:00:04]} d5 {[%emt 0:00:08]} 2. c4 {[%emt 0:00:17]} d4 {[%emt 0:00:24]} 3. b4 {[%emt 0:00:11]} Bg4 {[%emt 0:01:21]} 4. g3 {[%emt 0:00:36]} Bxf3 {[%emt 0:02:39]} 5. exf3 {[%emt 0:00:22]} e6 {[%emt 0:01:17]} 6. b5 {[%emt 0:02:43]} c6 {[%emt 0:15:04]} 7. Bg2 {[%emt 0:04:21]} Bc5 {[%emt 0:05:02]} 8. O-O {[%emt 0:00:48] White is slightly better.} Ne7 {[%emt 0:03:58]} 9. f4 {[%emt 0:02:34]} O-O {[%emt 0:08:58]} 10. d3 {[%emt 0:01:24]} Nd7 {[%emt 0:00:11]} 11. a4 {[%emt 0:13:10]} a5 {[%emt 0:08:00]} 12. Nd2 {[%emt 0:02:33]} Bb4 {[%emt 0:03:49]} 13. Nf3 {[%emt 0:12:15]} Bc3 {[%emt 0:13:45]} 14. Ra2 {[%emt 0:00:42]} Qc7 {[%emt 0:01:35]} 15. h4 {[%emt 0:08:01]} h5 {[%emt 0:05:15]} 16. Ne5 {[%emt 0:11:41]} Nxe5 {[%emt 0:01:17]} (16... g6 $14) 17. fxe5 $16 {[%emt 0:00:24]} Qxe5 {[%emt 0:00:38] [#]} 18. Bg5 $1 $36 {[%emt 0:02:26][%mdl 2048] White is on the roll.} f6 {[%emt 0:10:40]} 19. Bf4 {[%emt 0:00:57][%cal Bg5f4,Bf4d6,Bd6e7][%mdl 1056] White has strong compensation.} Qf5 {[%emt 0:00:17] This move loses the game for Black.} (19... Qc5 $16) 20. Bd6 $18 {[%emt 0:05:16]} Bb4 {[%emt 0:00:13]} 21. Be4 {[%emt 0:00:27] A strong pair of Bishops.} Qg4 {[%emt 0:00:13] [#]} 22. f3 $1 {[%emt 0:03:02]} Qh3 {[%emt 0:00:11]} 23. c5 {[%emt 0:00:02]} (23. Rh2 Qxf1+ 24. Kxf1 Bxd6 $18) 23... e5 {[%emt 0:06:53]} 24. Bxe7 {[%emt 0:03:26]} Rf7 {[%emt 0:00:04]} (24... Qe6 $142 25. Bxf8 Rxf8 26. bxc6 bxc6) 25. Qb3 {[%emt 0:01:43]} Qd7 {[%emt 0:01:40]} 26. Bd6 {[%emt 0:05:01]} f5 {[%emt 0:00:08]} 27. bxc6 {[%emt 0:01:10]} bxc6 {[%emt 0:00:07] [#]} 28. Raf2 $1 {[%emt 0:00:24][%cal Of3f4] And now f4! would win.} Ra7 {[%emt 0:05:11][%cal Ba8a7,Ba7e7,Be7e6][%mdl 32] [#]} 29. f4 $1 {[%emt 0:03:23][%cal Bf3f4,Bf4e5,Be5e6][%mdl 32]} fxe4 {[%emt 0:02:34]} 30. fxe5 {[%emt 0:00:04]} Qh3 {[%emt 0:02:48]} 31. dxe4 {[%emt 0:02:30][%cal Rf2f7,Bd3e4,Be4e5,Be5e6][%mdl 32]} (31. Rxf7 Qxg3+ 32. Kh1 Qxh4+ (32... Qh3+ 33. Kg1 $11) 33. Kg2 Qg4+ 34. Kh1 Qh3+ 35. Kg1 Qg4+ 36. Kh2 Qh4+ 37. Kg1 Qg3+ 38. Kh1 Qh3+ 39. Kg1 Qg3+ 40. Kh1 Qh3+ $11) 31... d3 {[%emt 0:00:36]} 32. e6 {[%emt 0:06:12]} (32. Rxf7 Qxg3+ 33. Kh1 Qh3+ 34. Kg1 Qg4+ (34... Qg3+ 35. Kh1 $11) 35. Kh2 Qxh4+ 36. Kg2 Qg5+ 37. Kh2 Qh4+ 38. Kg2 Qg4+ 39. Kh2 Qh4+ $11) 32... Rxf2 {[%emt 0:00:06]} 33. Rxf2 {[%emt 0:02:58] White threatens e7+ and mate.} Re7 {[%emt 0:00:09]} 34. Qxd3 {[%emt 0:01:01]} (34. Bxe7 Qxg3+ 35. Rg2 Bxc5+ 36. Bxc5 Qe1+ 37. Kh2 Qxh4+ 38. Kg1 Qe1+ 39. Kh2 Qh4+ 40. Kg1 Qe1+ 41. Kh2 Qh4+ $11) 34... Rxe6 {[%emt 0:00:14]} 35. e5 {[%emt 0:01:07]} Re8 {[%emt 0:01:20] Dodges Rf8+} 36. Qg6 {[%emt 0:00:19][%csl LRe8,LRh5]} Rd8 {[%emt 0:00:47]} 37. e6 {[%emt 0:02:25][%cal Oe6e7] White wants to mate with e7!} (37. Qxh5 Qxg3+ 38. Rg2 Qe3+ 39. Kh2 Qf4+ 40. Kh1 Qf1+ 41. Kh2 Qf4+ 42. Kh3 Bxc5 $11) ({Avoid the trap} 37. Rf7 $2 Bxc5+ 38. Rf2 Bxf2+ (38... Be3 39. Qf7+ Kh8 40. Qxh5+ Kg8 41. Qf7+ Kh7 42. Qh5+ Kg8 43. Qf7+ Kh8 44. Qh5+ Kg8 $11) 39. Kxf2 Qg4 40. Qxg4 hxg4 $19) 37... Bxc5 {[%emt 0:00:55]} 38. Qf7+ {[%emt 0:00:03]} Kh7 {[%emt 0:00:08]} 39. Qxh5+ {[%emt 0:00:03]} ({Stronger than} 39. Bxc5 Qxg3+ 40. Kh1 Rd1+ (40... Qxh4+ 41. Rh2 $11) 41. Rf1 Qxh4+ 42. Kg2 Qg5+ (42... Qxa4 43. Qxh5+ Kg8 44. Rf8#) 43. Kh2 Rxf1 44. Qxf1 Qxc5 $11) 39... Kg8 {[%emt 0:00:07]} 40. Qxc5 {[%emt 0:00:57]} Qxe6 {[%emt 0:00:06]} 41. Be5 {[%emt 0:32:01][%cal Oe5g7] Hoping for Bxg7!} ({Weaker is} 41. Qxa5 Qxd6 42. Kh2 c5 $11) 41... Qg6 {[%emt 0:05:07]} 42. Kh2 {[%emt 0:00:00]} Kh7 {[%emt 0:03:28]} 43. Qxa5 {[%emt 0:00:00]} Rd1 {[%emt 0:01:15]} 44. Qc7 {[%emt 0:00:00]} Qg4 {[%emt 0:01:55]} 45. Qxc6 {[%emt 0:00:00] Weighted Error Value: White=0.10 (very precise) /Black=0.41.  Loses game:     	---       	Black=1      Mistake:       	---       	Black=2      Inaccurate:     	---       	Black=1      OK:         	White=10    	Black=5      Best:        	White=1     	Black=2      Strong:       	White=2     	---} 1-0

[Event "Czech Championship 2024"]
[Site "Ostrava"]
[Date "2024.04.29"]
[Round "3.4"]
[White "Finek, Vaclav"]
[Black "Kraus, Tomas"]
[Result "1/2-1/2"]
[ECO "A07"]
[WhiteElo "2431"]
[BlackElo "2488"]
[Annotator "TA"]
[PlyCount "60"]
[EventDate "2024.04.25"]
[EventType "tourn"]
[EventCountry "CZE"]
[SourceTitle "playchess.com"]
[Source "ChessBase"]
[SourceQuality "1"]
[TimeControl "40/5400+30:1800+30"]

{[%evp 21,60,-33,7,-34,-8,-38,-40,-37,0,0,12,0,0,0,17,16,25,26,24,3,6,0,0,0,0,0,0,0,0,0,13,13,18,12,24,13,24,18,43,0,40]} 1. b3 {[%emt 0:00:07]} d5 {[%emt 0:04:44]} 2. Bb2 {[%emt 0:00:05]} Nf6 {[%emt 0:02:17]} 3. Nf3 {[%emt 0:00:10]} Bf5 {[%emt 0:01:19]} 4. g3 {[%emt 0:00:36]} e6 {[%emt 0:02:09]} 5. Bg2 {[%emt 0:00:05]} h6 {[%emt 0:02:26]} 6. O-O {[%emt 0:00:56]} Be7 {[%emt 0:00:56]} 7. d3 {[%emt 0:00:50]} O-O {[%emt 0:00:54]} 8. Nbd2 {[%emt 0:00:55]} Bh7 {[%emt 0:02:57]} 9. Qe1 {[%emt 0:07:29]} c5 {[%emt 0:03:04]} 10. e4 {[%emt 0:00:22]} Nc6 {[%emt 0:00:59]} 11. Qe2 {[%emt 0:02:29]} Rc8 {[%emt 0:05:35]} 12. a3 {[%emt 0:05:57]} b5 {[%emt 0:03:17]} 13. exd5 {[%emt 0:11:29]} Nxd5 {[%emt 0:05:25]} 14. Ne4 {[%emt 0:06:37] Black is slightly better.} Nf6 {[%emt 0:08:36]} (14... Nd4 $5 15. Nxd4 cxd4 $14) 15. a4 {[%emt 0:04:43]} a6 {[%emt 0:03:47][%cal Oc5c4]} 16. axb5 {[%emt 0:03:26]} axb5 {[%emt 0:00:57]} 17. Ne5 {[%emt 0:04:03]} Nxe5 {[%emt 0:18:02]} 18. Bxe5 {[%emt 0:01:42]} Nxe4 {[%emt 0:00:40]} 19. Bxe4 {[%emt 0:01:25]} Bxe4 {[%emt 0:00:10]} 20. Qxe4 {[%emt 0:00:18]} Bf6 {[%emt 0:00:15]} 21. Ra6 {[%emt 0:11:08]} Bxe5 {[%emt 0:02:17]} 22. Qxe5 {[%emt 0:00:18]} Qd4 {[%emt 0:00:04]} 23. Re1 {[%emt 0:03:00]} ({Not} 23. Rxe6 $2 fxe6 24. Qxe6+ Kh8 $19) 23... Rfd8 {[%emt 0:01:35]} 24. Qxd4 {[%emt 0:04:40]} cxd4 $11 {[%emt 0:08:36][%mdl 4096] Endgame. KRR-KRR} 25. Ra2 {[%emt 0:01:54]} Rc7 {[%emt 0:02:24]} 26. Re2 {[%emt 0:02:26]} Rdc8 {[%emt 0:01:55]} 27. Kf1 {[%emt 0:01:00]} Kf8 {[%emt 0:01:48]} 28. Ke1 {[%emt 0:01:30]} Ke7 {[%emt 0:00:20]} 29. Kd1 {[%emt 0:00:48]} Kd6 {[%emt 0:01:50]} 30. Ra5 {[%emt 0:02:29]} Rc5 {[%emt 0:01:27] Weighted Error Value: White=0.09 (flawless) /Black=0.13 (very precise) .  Inaccurate:     	White=2     	Black=3      OK:         	White=5     	Black=4} 1/2-1/2

[Event "Czech Championship 2024"]
[Site "Ostrava"]
[Date "2024.04.29"]
[Round "3.5"]
[White "Jirovsky, Milos"]
[Black "Stocek, Jiri"]
[Result "1-0"]
[ECO "D27"]
[WhiteElo "2450"]
[BlackElo "2531"]
[Annotator "TA"]
[PlyCount "83"]
[EventDate "2024.04.25"]
[EventType "tourn"]
[EventCountry "CZE"]
[SourceTitle "playchess.com"]
[Source "ChessBase"]
[SourceQuality "1"]
[TimeControl "40/5400+30:1800+30"]

{[%evp 21,83,21,14,8,16,8,4,6,0,0,0,1,6,0,4,0,0,0,0,0,27,0,-1,-2,-11,0,0,0,33,0,0,0,70,70,71,87,44,52,310,364,390,353,411,427,427,404,445,444,429,435,435,425,364,379,6321,5206,29967,29970,29974,29976,29976,29977,6279,633]} 1. Nf3 {[%emt 0:00:03]} d5 {[%emt 0:00:57]} 2. d4 {[%emt 0:00:10]} Nf6 {[%emt 0:00:17]} 3. c4 {[%emt 0:01:10]} dxc4 {[%emt 0:01:14]} 4. e3 {[%emt 0:00:30]} e6 {[%emt 0:00:37]} 5. Bxc4 {[%emt 0:00:14]} a6 {[%emt 0:00:15]} 6. O-O {[%emt 0:00:32]} Nbd7 {[%emt 0:00:42]} 7. b3 {[%emt 0:02:39]} b5 {[%emt 0:01:05]} 8. Be2 {[%emt 0:00:10]} Bb7 {[%emt 0:00:28]} 9. a4 {[%emt 0:01:40]} b4 {[%emt 0:03:23]} 10. Bb2 {[%emt 0:01:49]} c5 {[%emt 0:04:34]} 11. Nbd2 {[%emt 0:00:58]} Be7 {[%emt 0:05:24]} 12. Rc1 {[%emt 0:03:40]} O-O {[%emt 0:02:00]} 13. Rc2 {[%emt 0:01:37]} Rc8 {[%emt 0:04:58]} 14. Qa1 {[%emt 0:03:43] The position is equal.} cxd4 {[%emt 0:01:28]} 15. Rxc8 {[%emt 0:00:08]} Qxc8 {[%emt 0:00:05]} 16. Bxd4 {[%emt 0:00:17]} Qa8 {[%emt 0:02:01]} 17. Rc1 {[%emt 0:01:50]} Rc8 {[%emt 0:02:32]} 18. Bc4 {[%emt 0:11:45]} h6 {[%emt 0:05:25]} 19. Rc2 {[%emt 0:01:18]} Bd6 {[%emt 0:11:56]} 20. Qc1 {[%emt 0:01:41]} Ne4 {[%emt 0:06:56]} 21. Nxe4 {[%emt 0:10:00]} (21. Bxa6 {is more complex.} Rxc2 22. Qxc2 Qxa6 23. Nxe4 e5 24. Ba1) 21... Bxe4 {[%emt 0:00:17]} 22. Bd3 {[%emt 0:00:18]} Rxc2 {[%emt 0:04:37]} 23. Qxc2 {[%emt 0:00:04]} Bxf3 {[%emt 0:01:21]} 24. gxf3 {[%emt 0:00:07]} Be5 {[%emt 0:02:25]} 25. Bh7+ {[%emt 0:01:49] This pair of bishops is nice.} Kh8 {[%emt 0:00:14]} 26. Be4 {[%emt 0:00:22]} Qb8 {[%emt 0:01:16] Black is weak on the light squares} (26... Qd8 $11) 27. Qc6 $36 {[%emt 0:01:14][%csl LRa6,LRd7][%mdl 2048] White fights for an advantage.} Qd8 {[%emt 0:10:13]} 28. Bxe5 $1 {[%emt 0:06:35]} (28. Qxa6 Bxd4 29. exd4 Qg5+ 30. Kf1 Qc1+ 31. Kg2 Qg5+ 32. Kh3 Qh5+ 33. Kg2 Qg5+ 34. Kh3 Qh5+ 35. Kg3 (35. Kg2 Qg5+ $11) 35... Qg5+ 36. Kh3 $11) 28... Nxe5 {[%emt 0:00:11]} 29. Qxa6 $16 {[%emt 0:00:04][%mdl 4096] Endgame. Strongly threatening a5. KQB-KQN} Qd1+ $2 {[%emt 0:00:22][%mdl 8192] Black cannot hold the game after this.} ({Black should try} 29... f5 $1 $14 30. Qa8 (30. Qxe6 fxe4 31. Qxe5 exf3 $11) 30... Qxa8 31. Bxa8 Nc4) 30. Kg2 $18 {[%emt 0:08:18] White threatens Qc8+ and mate.} f5 {[%emt 0:00:14]} 31. Qc8+ {[%emt 0:01:05]} (31. Qxe6 fxe4 32. Qxe5 Qxf3+ 33. Kf1 Qd1+ 34. Kg2 Qf3+ 35. Kf1 Qd1+ 36. Kg2 Qf3+ $11) 31... Kh7 {[%emt 0:00:03] [#]} 32. Bxf5+ {[%emt 0:00:14][%mdl 512]} exf5 {[%emt 0:00:41]} 33. Qxf5+ {[%emt 0:00:05]} Ng6 {[%emt 0:01:29] [#]} 34. h4 $1 {[%emt 0:00:10] Hoping for h5.} Kg8 {[%emt 0:01:28]} (34... Qxb3 $2 {too greedy.} 35. h5) 35. Qxg6 {[%emt 0:00:31]} Qxb3 {[%emt 0:00:03] KQ-KQ} 36. a5 {[%emt 0:00:51][%cal Ba4a5,Ba5a6][%mdl 32]} Qa4 {[%emt 0:00:44] Repels Qe8+} 37. Qe6+ {[%emt 0:02:51]} Kf8 $2 {[%emt 0:01:30]} (37... Kh8 38. Qb6 b3) 38. Qc8+ {[%emt 0:00:50]} Kf7 {[%emt 0:00:59]} 39. Qc4+ {[%emt 0:00:48]} Ke7 {[%emt 0:01:58]} 40. a6 {[%emt 0:00:28]} Kd6 {[%emt 0:00:07]} 41. Qd4+ {[%emt 0:33:32]} Kc6 {[%emt 0:30:09]} 42. Qxg7 {[%emt 0:00:29] Weighted Error Value: White=0.03 (flawless) /Black=0.23 (precise) .  Loses game:     	---       	Black=1      Mistake:       	---       	Black=2      Inaccurate:     	White=2     	Black=2      OK:         	White=6     	Black=9      Best:        	White=3     	Black=3      Strong:       	White=2     	---        Brilliant:      	White=1     	---} (42. Qe4+ $142 Kd6 43. Qb7) 1-0